bitfinex/quotes_SOLUSD_20241031
["timestamp","ask_amount","ask_price","bid_price","bid_amount"]
[1730354923180,20.0,175.25,175.21,10.18472998]
[1730354924508,20.0,175.25,175.21,15.89202998]
[1730354925408,30.18472998,175.25,175.21,5.7073]
[1730354925582,10.18472998,175.26,175.21,15.89202998]
[1730354925778,10.18472998,175.26,175.21,30.16052998]
[1730354926407,27.0651,175.27,175.21,30.16052998]
[1730354926408,10.18472998,175.27,175.22,10.18472998]
[1730354927006,70.0,175.28,175.23,10.18472998]
[1730354927007,80.18472998,175.28,175.23,10.18472998]
[1730354928006,10.18472998,175.29,175.24,10.18472998]
[1730354928298,22.4875,175.31,175.21,20.0758]
[1730354928299,10.18472998,175.31,175.26,10.18472998]
[1730354928502,10.18472998,175.3,175.26,10.18472998]
[1730354928893,15.88912998,175.31,175.26,10.18472998]
[1730354929217,15.88912998,175.31,175.26,15.89042998]
[1730354929393,20.0,175.3,175.26,15.89042998]
[1730354931491,15.88912998,175.31,175.26,15.89042998]
[1730354931797,10.18472998,175.31,175.26,30.15492998]
[1730354932002,10.18472998,175.32,175.28,10.18472998]
[1730354932194,32.51910005,175.34,175.29,10.18472998]
[1730354932783,16.63097007,175.34,175.31,10.18472998]
[1730354933381,16.63097007,175.34,175.26,48.5992]
[1730354933382,16.63097007,175.34,175.3,10.18472998]
[1730354933805,16.63097007,175.34,175.3,15.88882998]
[1730354934300,16.63097007,175.34,175.31,10.18472998]
[1730354934508,10.18472998,175.37,175.32,10.18472998]
[1730354934806,10.18472998,175.37,175.33,10.18472998]
[1730354935394,10.18472998,175.38,175.33,10.18472998]
[1730354935996,10.18472998,175.36,175.32,10.18472998]
[1730354936399,10.18472998,175.37,175.32,10.18472998]
[1730354937610,10.18472998,175.37,175.32,15.88822998]
[1730354941189,10.18472998,175.37,175.32,30.14782998]
[1730354944499,10.18472998,175.37,175.33,10.18472998]
[1730354945702,10.18472998,175.37,175.33,15.88802998]
[1730354946806,10.18472998,175.38,175.33,15.88802998]
[1730354947011,10.18472998,175.38,175.34,10.18472998]
[1730354947715,10.18472998,175.38,175.33,30.14682998]
[1730354949116,10.18472998,175.37,175.33,30.14682998]
[1730354950811,10.18472998,175.37,175.32,10.18472998]
[1730354951790,10.18472998,175.37,175.33,10.18472998]
[1730354952022,10.18472998,175.37,175.34,5.7032]
[1730354952515,10.18472998,175.38,175.34,5.7032]
[1730354959310,10.18472998,175.38,175.34,10.18472998]
[1730354960022,15.88632998,175.39,175.34,10.18472998]
[1730354960734,15.88632998,175.39,175.34,15.88772998]
[1730354960915,10.18472998,175.39,175.34,30.14572998]
[1730354961227,10.18472998,175.39,175.35,10.18472998]
[1730354961724,80.18472998,175.4,175.35,10.18472998]
[1730354962718,80.18472998,175.4,175.35,15.88742998]
[1730354965400,20.0,175.4,175.36,10.18472998]
[1730354966724,30.18472998,175.4,175.36,15.88712998]
[1730354969813,30.18472998,175.41,175.37,10.18472998]
[1730354971034,30.18472998,175.41,175.37,15.88682998]
[1730354972025,20.0,175.41,175.38,10.18472998]
[1730354973342,15.88492998,175.43,175.38,15.88632998]
[1730354973726,10.18472998,175.43,175.39,10.18472998]
[1730354974231,10.18472998,175.43,175.38,30.14102998]
[1730354975425,10.18472998,175.42,175.38,19.9563]
[1730354978339,10.18472998,175.43,175.38,30.14102998]
[1730354979916,15.88502998,175.43,175.38,30.14102998]
[1730354980540,10.18472998,175.42,175.38,30.14102998]
[1730354981236,10.18472998,175.4,175.35,15.88752998]
[1730354981833,10.18472998,175.4,175.36,10.18472998]
[1730354982817,15.88562998,175.41,175.36,15.88722998]
[1730354987634,5.7009,175.41,175.37,10.18472998]
[1730354989050,10.18472998,175.42,175.37,10.18472998]
[1730354989249,15.88532998,175.42,175.37,10.18472998]
[1730354989833,10.18472998,175.41,175.36,15.88712998]
[1730354993235,10.18472998,175.41,175.35,24.44182998]
[1730354993555,10.18472998,175.4,175.35,24.44182998]
[1730354994253,10.18472998,175.37,175.33,5.7035]
[1730354994633,10.18472998,175.38,175.33,15.88822998]
[1730354997371,10.18472998,175.36,175.32,15.88852998]
[1730354999266,10.18472998,175.34,175.31,14.2601]
[1730354999443,10.18472998,175.34,175.29,15.88922998]
[1730355001158,10.18472998,175.34,175.29,30.15122998]
[1730355002369,10.18472998,175.33,175.29,30.15122998]
[1730355002554,10.18472998,175.33,175.29,19.9665]
[1730355009976,10.18472998,175.32,175.29,14.262]
[1730355010176,10.18472998,175.31,175.26,10.18472998]
[1730355010359,10.18472998,175.29,175.24,5.95632072]
[1730355010566,10.18472998,175.29,175.23,10.18472998]
[1730355010761,10.18472998,175.29,175.23,30.15832998]
[1730355010954,10.18472998,175.29,175.24,10.18472998]
[1730355011477,10.18472998,175.3,175.25,10.18472998]
[1730355011675,10.18472998,175.29,175.24,10.18472998]
[1730355011878,10.18472998,175.3,175.25,10.18472998]
[1730355012177,15.88922998,175.3,175.25,10.18472998]
[1730355012859,15.88922998,175.3,175.25,15.89062998]
[1730355016177,10.18472998,175.29,175.25,15.89062998]
[1730355018579,10.18472998,175.29,175.24,10.18472998]
[1730355019981,10.18472998,175.27,175.23,14.2669]
[1730355021069,10.18472998,175.26,175.23,14.2669]
[1730355022582,10.18472998,175.27,175.23,19.9736]
[1730355023459,15.89022998,175.27,175.23,14.2669]
[1730355023781,10.18472998,175.25,175.21,15.89212998]
[1730355024080,10.18472998,175.25,175.2,10.18472998]
[1730355024266,10.18472998,175.25,175.2,15.89232998]
[1730355024987,10.18472998,175.25,175.21,10.18472998]
[1730355025185,10.18472998,175.26,175.21,15.89212998]
[1730355026255,10.18472998,175.27,175.22,10.18472998]
[1730355026459,20.0,175.28,175.24,10.18472998]
[1730355026866,10.18472998,175.27,175.22,10.18472998]
[1730355027269,10.18472998,175.25,175.21,14.2685]
[1730355028057,80.18472998,175.26,175.21,24.45322998]
[1730355028982,85.89072998,175.26,175.21,24.45322998]
[1730355029167,15.89072998,175.26,175.21,24.45322998]
[1730355029367,15.89072998,175.26,175.22,10.18472998]
[1730355030686,15.89072998,175.26,175.21,24.45322998]
[1730355031070,15.89072998,175.26,175.22,10.18472998]
[1730355032488,10.18472998,175.27,175.22,15.89162998]
[1730355032690,100.18472998,175.28,175.23,10.18472998]
[1730355032871,20.0,175.28,175.24,10.18472998]
[1730355033183,15.88952998,175.29,175.24,10.18472998]
[1730355034490,15.88952998,175.29,175.24,15.89112998]
[1730355035491,10.18472998,175.29,175.24,15.89112998]
[1730355035687,10.18472998,175.29,175.24,30.15722998]
[1730355041380,10.18472998,175.28,175.24,30.15722998]
[1730355041778,10.18472998,175.25,175.2,10.18472998]
[1730355042100,70.0,175.28,175.19,30.16292998]
[1730355042101,10.18472998,175.24,175.19,30.16292998]
[1730355042474,10.18472998,175.24,175.2,10.18472998]
[1730355043291,10.18472998,175.25,175.21,5.7074]
[1730355043613,10.18472998,175.26,175.22,10.18472998]
[1730355045780,10.18472998,175.24,175.19,15.89272998]
[1730355047388,10.18472998,175.25,175.21,10.18472998]
[1730355048992,10.18472998,175.25,175.21,15.89192998]
[1730355050106,10.18472998,175.25,175.21,5.7072]
[1730355052996,85.89052998,175.26,175.21,10.18472998]
[1730355057119,10.18472998,175.26,175.21,10.18472998]
[1730355057411,10.18472998,175.27,175.23,10.18472998]
[1730355058285,15.89022998,175.27,175.23,10.18472998]
[1730355060197,80.18472998,175.28,175.23,10.18472998]
[1730355060513,20.0,175.27,175.24,10.18472998]
[1730355060710,15.88962998,175.29,175.24,10.18472998]
[1730355061599,15.88962998,175.29,175.24,15.89112998]
[1730355063903,10.18472998,175.27,175.23,10.18472998]
[1730355064496,10.18472998,175.26,175.21,24.45322998]
[1730355066521,10.18472998,175.25,175.2,10.18472998]
[1730355066700,10.18472998,175.22,175.17,10.18472998]
[1730355066895,80.18472998,175.23,175.18,10.18472998]
[1730355067097,10.18472998,175.24,175.19,10.18472998]
[1730355067302,70.0,175.25,175.15,21.3197]
[1730355067303,80.18472998,175.25,175.2,10.18472998]
[1730355067501,10.18472998,175.24,175.19,10.18472998]
[1730355069516,10.18472998,175.24,175.19,15.89272998]
[1730355069909,10.18472998,175.23,175.19,5.708]
[1730355070824,10.18472998,175.24,175.19,10.18472998]
[1730355072420,10.18472998,175.23,175.18,10.18472998]
[1730355073706,10.18472998,175.23,175.18,15.89282998]
[1730355076821,10.18472998,175.23,175.18,10.18472998]
[1730355077004,10.18472998,175.22,175.17,10.18472998]
[1730355078501,5.7074,175.21,175.17,10.18472998]
[1730355082924,5.7074,175.21,175.16,10.18472998]
[1730355082925,85.89212998,175.21,175.16,10.18472998]
[1730355084330,85.89212998,175.21,175.16,15.89372998]
[1730355085416,10.18472998,175.19,175.15,14.2734]
[1730355086007,10.18472998,175.2,175.15,24.45812998]
[1730355086425,15.89262998,175.2,175.15,24.45812998]
[1730355087930,85.89282998,175.19,175.15,24.45812998]
[1730355095629,75.7081,175.19,175.15,24.45812998]
[1730355096534,70.0,175.19,175.16,10.18472998]
[1730355099138,5.7078,175.2,175.16,10.18472998]
[1730355100040,5.7078,175.2,175.17,10.18472998]
[1730355100328,5.7078,175.2,175.16,10.18472998]
[1730355100635,15.89252998,175.2,175.15,10.18472998]
[1730355104337,80.18472998,175.21,175.16,10.18472998]
[1730355104562,85.89212998,175.21,175.16,10.18472998]
[1730355107434,10.18472998,175.2,175.15,10.18472998]
[1730355109314,85.89212998,175.21,175.15,15.89392998]
[1730355109640,85.89212998,175.21,175.16,10.18472998]
[1730355113622,85.89212998,175.21,175.15,10.18472998]
[1730355114025,10.18472998,175.2,175.15,10.18472998]
[1730355115023,15.89252998,175.2,175.15,15.89402998]
[1730355115224,15.89252998,175.2,175.15,10.18472998]
[1730355116928,15.89252998,175.2,175.14,24.45812998]
[1730355116929,80.18472998,175.19,175.14,24.45812998]
[1730355118420,85.89292998,175.19,175.14,24.45812998]
[1730355118840,85.89292998,175.19,175.14,10.18472998]
[1730355120657,10.18472998,175.18,175.13,10.18472998]
[1730355120941,80.18472998,175.17,175.11,15.89532998]
[1730355121337,10.18472998,175.16,175.11,10.18472998]
[1730355122340,15.89392998,175.16,175.11,10.18472998]
[1730355123843,10.18472998,175.15,175.1,24.46172998]
[1730355125027,10.18472998,175.15,175.1,30.17272998]
[1730355126131,10.18472998,175.14,175.09,10.18472998]
[1730355126339,15.89442998,175.14,175.09,10.18472998]
[1730355127141,15.89442998,175.14,175.09,15.89592998]
[1730355127345,5.7097,175.14,175.1,10.18472998]
[1730355130127,70.0,175.17,175.13,10.18472998]
[1730355130333,5.7084,175.18,175.14,10.18472998]
[1730355131147,80.18472998,175.19,175.14,10.18472998]
[1730355132056,10.18472998,175.18,175.14,10.18472998]
[1730355132445,15.89322998,175.18,175.13,10.18472998]
[1730355136151,15.89322998,175.18,175.14,10.18472998]
[1730355137152,15.89322998,175.18,175.13,10.18472998]
[1730355138756,15.89322998,175.18,175.14,10.18472998]
[1730355142334,5.7085,175.18,175.14,10.18472998]
[1730355146765,5.7078,175.2,175.16,10.18472998]
[1730355146977,5.7074,175.21,175.16,10.18472998]
[1730355149581,5.7074,175.21,175.17,10.18472998]
[1730355152039,15.89212998,175.21,175.16,15.89362998]
[1730355153971,10.18472998,175.2,175.16,15.89362998]
[1730355156766,15.89212998,175.21,175.16,15.89362998]
[1730355158664,5.7074,175.21,175.17,10.18472998]
[1730355159164,70.0,175.22,175.18,10.18472998]
[1730355159368,75.7071,175.22,175.18,10.18472998]
[1730355161350,75.7071,175.22,175.17,10.18472998]
[1730355161351,85.89182998,175.22,175.17,10.18472998]
[1730355163572,75.7071,175.22,175.18,10.18472998]
[1730355167679,85.89182998,175.22,175.18,10.18472998]
[1730355168958,85.89182998,175.22,175.17,10.18472998]
[1730355169164,10.18472998,175.21,175.17,10.18472998]
[1730355169764,15.89242998,175.21,175.17,10.18472998]
[1730355170266,5.7077,175.21,175.17,10.18472998]
[1730355170473,5.7077,175.21,175.18,10.18472998]
[1730355170983,5.7077,175.21,175.17,10.18472998]
[1730355172581,80.18472998,175.22,175.18,10.18472998]
[1730355172783,80.18472998,175.22,175.2,10.18472998]
[1730355172784,70.0,175.22,175.2,10.18472998]
[1730355172987,70.0,175.24,175.2,10.18472998]
[1730355174483,75.7065,175.24,175.2,10.18472998]
[1730355175876,85.89122998,175.24,175.19,10.18472998]
[1730355177685,10.18472998,175.23,175.19,10.18472998]
[1730355178695,85.89122998,175.24,175.19,10.18472998]
[1730355180690,85.89122998,175.24,175.2,10.18472998]
[1730355183183,75.7065,175.24,175.2,10.18472998]
[1730355183872,75.7065,175.24,175.21,10.18472998]
[1730355197389,85.89122998,175.24,175.2,10.18472998]
[1730355199784,75.7065,175.24,175.2,10.18472998]
[1730355204210,75.7065,175.24,175.21,10.18472998]
[1730355205017,75.7065,175.24,175.2,10.18472998]
[1730355210515,70.0,175.26,175.21,10.18472998]
[1730355210694,5.7054,175.27,175.22,10.18472998]
[1730355211102,70.0,175.26,175.22,10.18472998]
[1730355211697,75.7059,175.26,175.22,10.18472998]
[1730355212817,75.7059,175.26,175.18,29.5514]
[1730355212818,85.89062998,175.26,175.21,10.18472998]
[1730355212999,70.0,175.24,175.2,10.18472998]
[1730355214120,75.7064,175.24,175.2,10.18472998]
[1730355215020,75.7064,175.24,175.21,10.18472998]
[1730355216123,80.18472998,175.26,175.21,10.18472998]
[1730355216331,5.7061,175.25,175.21,10.18472998]
[1730355218523,70.0,175.26,175.22,10.18472998]
[1730355221120,85.89072998,175.26,175.21,15.89202998]
[1730355221325,10.18472998,175.25,175.2,30.16182998]
[1730355222810,14.2621,175.29,175.18,10.18472998]
[1730355222811,70.0,175.22,175.18,10.18472998]
[1730355223108,80.18472998,175.22,175.17,10.18472998]
[1730355223715,70.0,175.22,175.18,10.18472998]
[1730355224738,75.7072,175.22,175.18,10.18472998]
[1730355225819,75.7072,175.22,175.19,10.18472998]
[1730355226219,70.0,175.22,175.19,10.18472998]
[1730355227926,21.9382,175.25,175.21,10.18472998]
[1730355227927,75.7064,175.25,175.21,10.18472998]
[1730355228137,75.7064,175.25,175.22,10.18472998]
[1730355228627,75.7064,175.25,175.21,10.18472998]
[1730355235815,75.7064,175.25,175.2,10.18472998]
[1730355237523,85.89112998,175.25,175.2,10.18472998]
[1730355242724,75.7064,175.25,175.2,10.18472998]
[1730355243116,75.7064,175.25,175.21,10.18472998]
[1730355246548,70.0,175.25,175.22,10.18472998]
[1730355246847,76.6399,175.29,175.24,10.18472998]
[1730355247028,76.6399,175.29,175.25,10.18472998]
[1730355247534,80.18472998,175.31,175.26,10.18472998]
[1730355247744,5.7046,175.3,175.26,10.18472998]
[1730355247927,70.0,175.31,175.27,10.18472998]
[1730355248630,70.0,175.31,175.26,10.18472998]
[1730355249348,80.18472998,175.31,175.26,10.18472998]
[1730355249738,80.18472998,175.31,175.21,42.8056]
[1730355249739,70.0,175.29,175.25,10.18472998]
[1730355250238,80.18472998,175.29,175.25,10.18472998]
[1730355251850,70.0,175.29,175.25,10.18472998]
[1730355253442,75.7048,175.29,175.25,10.18472998]
[1730355255240,75.7048,175.29,175.24,10.18472998]
[1730355255556,85.88952998,175.29,175.24,10.18472998]
[1730355257947,85.88952998,175.29,175.24,15.89102998]
[1730355260732,10.18472998,175.26,175.22,15.89152998]
[1730355260956,70.0,175.27,175.22,15.89152998]
[1730355260957,80.18472998,175.27,175.22,15.89152998]
[1730355261152,70.0,175.27,175.24,10.18472998]
[1730355261537,70.0,175.27,175.23,10.18472998]
[1730355261732,10.18472998,175.26,175.21,30.16052998]
[1730355261932,70.0,175.24,175.2,10.18472998]
[1730355262139,10.18472998,175.23,175.19,15.89272998]
[1730355262358,10.18472998,175.23,175.18,15.89302998]
[1730355262734,10.18472998,175.22,175.18,10.18472998]
[1730355264225,15.89162998,175.23,175.18,10.18472998]
[1730355265732,10.18472998,175.22,175.18,10.18472998]
[1730355265934,15.89162998,175.23,175.18,10.18472998]
[1730355268746,5.7069,175.23,175.19,10.18472998]
[1730355268945,15.89162998,175.23,175.19,10.18472998]
[1730355269134,75.7064,175.24,175.21,10.18472998]
[1730355269758,75.7064,175.24,175.2,10.18472998]
[1730355275772,85.89112998,175.24,175.2,10.18472998]
[1730355280966,75.7064,175.24,175.2,10.18472998]
[1730355287266,85.89112998,175.24,175.2,10.18472998]
[1730355295384,75.7064,175.24,175.2,10.18472998]
[1730355300291,15.89092998,175.25,175.2,15.89232998]
[1730355300467,5.7062,175.25,175.22,10.18472998]
[1730355300661,70.0,175.24,175.22,10.18472998]
[1730355300965,70.0,175.24,175.21,10.18472998]
[1730355301692,70.0,175.24,175.2,10.18472998]
[1730355302200,85.89122998,175.24,175.19,10.18472998]
[1730355304567,85.89122998,175.24,175.19,15.89262998]
[1730355306365,80.18472998,175.22,175.17,10.18472998]
[1730355307594,80.18472998,175.2,175.15,10.18472998]
[1730355308592,10.18472998,175.19,175.14,10.18472998]
[1730355308766,80.18472998,175.18,175.14,10.18472998]
[1730355309282,85.89312998,175.18,175.14,10.18472998]
[1730355309489,85.89312998,175.18,175.13,10.18472998]
[1730355311777,85.89312998,175.18,175.13,15.89472998]
[1730355311980,70.0,175.18,175.15,10.18472998]
[1730355312690,70.0,175.2,175.17,10.18472998]
[1730355312878,70.0,175.2,175.13,19.9851]
[1730355312879,70.0,175.2,175.16,10.18472998]
[1730355313280,80.18472998,175.2,175.15,10.18472998]
[1730355313486,10.18472998,175.19,175.15,10.18472998]
[1730355313693,80.18472998,175.18,175.13,30.16982998]
[1730355315672,70.0,175.18,175.15,10.18472998]
[1730355316572,70.0,175.18,175.13,14.2751]
[1730355316573,75.7084,175.18,175.14,10.18472998]
[1730355323084,85.89312998,175.18,175.13,24.45982998]
[1730355323695,85.89312998,175.18,175.13,14.2751]
[1730355325195,80.18472998,175.15,175.11,5.7106]
[1730355325376,80.18472998,175.15,175.11,15.89532998]
[1730355325377,70.0,175.15,175.11,15.89532998]
[1730355329504,70.0,175.15,175.11,10.18472998]
[1730355329684,75.7095,175.15,175.11,10.18472998]
[1730355330701,70.0,175.13,175.1,10.18472998]
[1730355332408,70.0,175.13,175.09,30.17362998]
[1730355334203,70.0,175.13,175.1,10.18472998]
[1730355337689,70.0,175.11,175.08,15.89622998]
[1730355340613,70.0,175.11,175.08,10.18472998]
[1730355340999,70.0,175.11,175.07,15.89662998]
[1730355342105,80.18472998,175.11,175.06,30.17772998]
[1730355343008,70.0,175.11,175.07,10.18472998]
[1730355343617,70.0,175.11,175.07,15.89662998]
[1730355350324,70.0,175.09,175.07,10.18472998]
[1730355350504,70.0,175.09,175.06,14.2807]
[1730355353422,70.0,175.09,175.07,10.18472998]
[1730355353808,70.0,175.11,175.08,10.18472998]
[1730355354011,70.0,175.11,175.09,10.18472998]
[1730355354626,70.0,175.11,175.08,10.18472998]
[1730355356935,70.0,175.11,175.07,10.18472998]
[1730355358936,70.0,175.11,175.08,10.18472998]
[1730355360817,70.0,175.11,175.07,15.89642998]
[1730355362249,70.0,175.11,175.07,10.18472998]
[1730355362250,75.7107,175.11,175.07,10.18472998]
[1730355362416,85.89542998,175.11,175.06,30.17762998]
[1730355362737,85.89542998,175.11,175.05,16.29287878]
[1730355362738,70.0,175.09,175.05,16.29287878]
[1730355368219,80.18472998,175.09,175.05,16.29287878]
[1730355371246,10.18472998,175.08,175.04,15.89762998]
[1730355372820,80.18472998,175.07,175.03,14.2831]
[1730355374542,70.0,175.05,175.01,15.89862998]
[1730355374757,75.7123,175.07,175.03,10.18472998]
[1730355374928,70.0,175.07,175.03,10.18472998]
[1730355375339,70.0,175.09,175.06,10.18472998]
[1730355376027,70.0,175.09,175.01,19.9987]
[1730355376028,70.0,175.09,175.05,10.18472998]
[1730355376230,75.7113,175.09,175.05,10.18472998]
[1730355379538,75.7113,175.09,175.06,10.18472998]
[1730355380348,70.0,175.09,175.06,10.18472998]
[1730355381754,70.0,175.09,175.05,10.18472998]
[1730355382546,85.89612998,175.09,175.04,10.18472998]
[1730355383633,10.18472998,175.08,175.03,10.18472998]
[1730355384757,75.7114,175.09,175.04,10.18472998]
[1730355384935,70.0,175.09,175.07,10.18472998]
[1730355385142,70.0,175.11,175.07,10.18472998]
[1730355385339,70.0,175.11,175.08,10.18472998]
[1730355386137,70.0,175.11,175.07,10.18472998]
[1730355386439,75.7107,175.11,175.07,10.18472998]
[1730355387161,70.0,175.09,175.06,10.18472998]
[1730355389061,70.0,175.09,175.03,14.2832]
[1730355389062,75.7113,175.09,175.04,5.7129]
[1730355389246,85.89602998,175.09,175.04,15.89762998]
[1730355389962,75.7113,175.09,175.05,10.18472998]
[1730355390453,75.7113,175.09,175.06,10.18472998]
[1730355393631,75.7113,175.09,175.04,10.18472998]
[1730355394536,75.7113,175.09,175.05,10.18472998]
[1730355404747,16.2054,175.1,175.05,10.18472998]
[1730355404949,75.7108,175.11,175.07,10.18472998]
[1730355406046,75.7102,175.13,175.08,10.18472998]
[1730355406754,75.7102,175.13,175.09,10.18472998]
[1730355409055,70.0,175.11,175.08,10.18472998]
[1730355411452,85.89492998,175.13,175.09,10.18472998]
[1730355411762,85.89492998,175.13,175.08,10.18472998]
[1730355412567,70.0,175.1,175.07,10.18472998]
[1730355412870,70.0,175.1,175.08,10.18472998]
[1730355414565,99.487284,175.12,175.08,10.18472998]
[1730355415470,93.776884,175.12,175.08,10.18472998]
[1730355415775,93.776884,175.12,175.09,10.18472998]
[1730355416470,86.69072998,175.14,175.09,10.18472998]
[1730355416666,70.0,175.14,175.1,15.89562998]
[1730355416863,10.18472998,175.15,175.1,15.89562998]
[1730355417066,70.0,175.16,175.1,15.89562998]
[1730355417067,70.0,175.16,175.13,10.18472998]
[1730355417369,70.0,175.11,175.08,10.18472998]
[1730355417567,70.0,175.11,175.07,10.18472998]
[1730355418680,70.0,175.09,175.05,15.89732998]
[1730355419794,70.0,175.11,175.08,10.18472998]
[1730355420155,70.0,175.14,175.1,10.18472998]
[1730355420378,70.0,175.14,175.11,10.18472998]
[1730355420575,70.0,175.16,175.12,10.18472998]
[1730355421570,80.18472998,175.16,175.11,10.18472998]
[1730355421877,80.18472998,175.16,175.11,15.89532998]
[1730355422573,70.0,175.16,175.12,10.18472998]
[1730355422758,70.0,175.16,175.13,10.18472998]
[1730355423959,70.0,175.16,175.14,10.18472998]
[1730355424476,70.0,175.16,175.13,10.18472998]
[1730355424680,70.0,175.16,175.14,10.18472998]
[1730355426859,70.0,175.16,175.12,10.18472998]
[1730355427559,80.18472998,175.16,175.11,30.17202998]
[1730355427760,80.18472998,175.16,175.12,10.18472998]
[1730355428284,70.0,175.14,175.11,14.2767]
[1730355428582,80.18472998,175.14,175.09,15.89592998]
[1730355428776,70.0,175.12,175.08,15.89632998]
[1730355429477,70.0,175.12,175.09,10.18472998]
[1730355433564,70.0,175.12,175.08,10.18472998]
[1730355434675,70.0,175.12,175.09,10.18472998]
[1730355438288,70.0,175.14,175.11,10.18472998]
[1730355438486,70.0,175.14,175.12,10.18472998]
[1730355438697,70.0,175.14,175.11,10.18472998]
[1730355439772,70.0,175.14,175.1,10.18472998]
[1730355441087,70.0,175.14,175.1,15.89552998]
[1730355441303,70.0,175.12,175.09,24.46282998]
[1730355441994,70.0,175.12,175.09,14.2781]
[1730355443086,70.0,175.12,175.09,10.18472998]
[1730355443885,10.18472998,175.13,175.08,10.18472998]
[1730355444082,10.18472998,175.13,175.08,15.89612998]
[1730355444286,70.0,175.12,175.09,10.18472998]
[1730355446691,70.0,175.12,175.09,15.89602998]
[1730355447494,70.0,175.12,175.1,10.18472998]
[1730355448377,75.7099,175.14,175.1,10.18472998]
[1730355448572,75.7099,175.14,175.11,10.18472998]
[1730355449496,70.0,175.12,175.1,10.18472998]
[1730355449896,70.0,175.12,175.09,10.18472998]
[1730355450096,70.0,175.12,175.09,15.89602998]
[1730355450284,70.0,175.12,175.09,10.18472998]
[1730355450992,70.0,175.12,175.08,24.46382998]
[1730355451201,70.0,175.12,175.08,30.17542998]
[1730355453484,80.18472998,175.12,175.07,10.18472998]
[1730355455404,80.18472998,175.12,175.07,15.89642998]
[1730355455903,70.0,175.12,175.08,10.18472998]
[1730355456686,70.0,175.12,175.09,10.18472998]
[1730355457196,70.0,175.12,175.1,10.18472998]
[1730355458406,5.71,175.13,175.1,10.18472998]
[1730355458599,70.0,175.14,175.1,10.18472998]
[1730355461612,70.0,175.14,175.12,10.18472998]
[1730355461792,70.0,175.14,175.11,10.18472998]
[1730355462115,75.7098,175.14,175.1,10.18472998]
[1730355462517,75.7098,175.14,175.08,14.2791]
[1730355462694,70.0,175.12,175.08,24.46382998]
[1730355463012,70.0,175.12,175.08,14.2791]
[1730355463203,80.18472998,175.12,175.08,14.2791]
[1730355463515,85.89532998,175.12,175.08,14.2791]
[1730355464210,85.89532998,175.12,175.08,24.46382998]
[1730355464211,75.7106,175.12,175.08,24.46382998]
[1730355465716,70.0,175.12,175.08,24.46382998]
[1730355465894,70.0,175.12,175.08,30.17542998]
[1730355466096,70.0,175.1,175.08,24.46382998]
[1730355466395,70.0,175.1,175.07,15.89662998]
[1730355467817,70.0,175.1,175.07,10.18472998]
[1730355467993,70.0,175.1,175.06,10.18472998]
[1730355468712,70.0,175.08,175.05,14.2815]
[1730355470219,70.0,175.06,175.04,10.18472998]
[1730355470712,70.0,175.06,175.03,10.18472998]
[1730355472027,70.0,175.06,175.04,10.18472998]
[1730355473020,70.0,175.06,175.03,10.18472998]
[1730355474605,70.0,175.04,175.01,30.18282998]
[1730355474802,70.0,175.04,175.02,10.18472998]
[1730355478522,70.0,175.04,175.03,10.18472998]
[1730355478720,70.0,175.06,175.03,10.18472998]
[1730355480619,96.37312998,175.08,175.03,10.18472998]
[1730355480809,70.0,175.08,175.06,10.18472998]
[1730355483828,70.0,175.08,175.05,10.18472998]
[1730355484820,70.0,175.08,175.06,10.18472998]
[1730355485025,75.711,175.1,175.06,10.18472998]
[1730355485734,70.0,175.1,175.06,10.18472998]
[1730355485933,70.0,175.1,175.07,10.18472998]
[1730355486520,75.7106,175.12,175.09,10.18472998]
[1730355486718,75.7106,175.12,175.08,10.18472998]
[1730355487418,70.0,175.1,175.08,10.18472998]
[1730355487616,70.0,175.1,175.07,10.18472998]
[1730355489235,70.0,175.1,175.06,15.89692998]
[1730355494625,70.0,175.1,175.05,14.2816]
[1730355494626,70.0,175.07,175.05,14.2816]
[1730355494926,70.0,175.07,175.03,10.18472998]
[1730355496714,70.0,175.07,175.03,15.89792998]
[1730355498330,70.0,175.07,175.03,10.18472998]
[1730355498508,70.0,175.05,175.03,10.18472998]
[1730355498713,70.0,175.05,175.02,15.89832998]
[1730355499810,70.0,175.05,175.01,14.2842]
[1730355499811,70.0,175.03,175.01,24.46892998]
[1730355501035,70.0,175.03,175.02,10.18472998]
[1730355501546,75.7127,175.05,175.02,10.18472998]
[1730355504438,75.7127,175.05,175.01,14.2842]
[1730355504439,70.0,175.07,175.03,10.18472998]
[1730355505219,70.0,175.07,175.04,10.18472998]